fUST/lending_fUST_20240705
["ID","MTS","AMOUNT","RATE_DAILY","PERIOD"]
[331249351,1720157451802,-545.74,0.00049315,120]
[331249352,1720157451812,-500.0,0.00049315,120]
[331249353,1720157451821,-500.0,0.00049315,120]
[331249354,1720157451831,-500.0,0.00049315,120]
[331249355,1720157451840,-500.0,0.00049315,120]
[331249356,1720157451849,-500.0,0.00049315,120]
[331249357,1720157451858,-500.0,0.00049315,120]
[331249358,1720157451868,-2316.69,0.00049315,120]
[331249359,1720157451878,-527.88,0.00049315,120]
[331249360,1720157451887,-500.0,0.00049315,120]
[331249361,1720157451896,-500.0,0.00049315,120]
[331249362,1720157451905,-500.0,0.00049315,120]
[331249363,1720157451916,-1187.08,0.00049315,120]
[331249364,1720157451925,-500.0,0.00049315,120]
[331249365,1720157451937,-500.0,0.00049315,120]
[331249366,1720157451948,-500.0,0.00049315,120]
[331249367,1720157451958,-500.0,0.00049315,120]
[331249368,1720157451967,-500.0,0.00049315,120]
[331249369,1720157451977,-500.0,0.00049315,120]
[331249370,1720157451986,-692.12,0.00049315,120]
[331249371,1720157451995,-500.0,0.00049315,120]
[331249372,1720157452004,-692.12,0.00049315,120]
[331249373,1720157452013,-692.12,0.00049315,120]
[331249374,1720157452022,-692.12,0.00049315,120]
[331249375,1720157452034,-692.12,0.00049315,120]
[331249376,1720157452043,-500.0,0.00049315,120]
[331249377,1720157452052,-692.12,0.00049315,120]
[331249378,1720157452061,-500.0,0.00049315,120]
[331249379,1720157452071,-692.12,0.00049315,120]
[331249380,1720157452080,-500.0,0.00049315,120]
[331249381,1720157452090,-692.12,0.00049315,120]
[331249382,1720157452100,-692.12,0.00049315,120]
[331249383,1720157452110,-692.12,0.00049315,120]
[331249384,1720157452119,-692.12,0.00049315,120]
[331249385,1720157452129,-692.12,0.00049315,120]
[331249386,1720157452139,-500.0,0.00049315,120]
[331249387,1720157452148,-841.95,0.00049315,120]
[331249388,1720157452157,-500.0,0.00049315,120]
[331249389,1720157452166,-500.0,0.00049315,120]
[331249390,1720157452176,-500.0,0.00049315,120]
[331249391,1720157452185,-500.0,0.00049315,120]
[331249392,1720157452195,-500.0,0.00049315,120]
[331249393,1720157452204,-15684.73,0.00049315,120]
[331249394,1720157452213,-596.33,0.00049315,120]
[331249395,1720157452223,-500.0,0.00049315,120]
[331249396,1720157452234,-500.0,0.00049315,120]
[331249397,1720157452243,-500.0,0.00049315,120]
[331249398,1720157452253,-500.0,0.00049315,120]
[331249399,1720157452262,-500.0,0.00049315,120]
[331249400,1720157452271,-500.0,0.00049315,120]
[331249401,1720157452280,-500.0,0.00049315,120]
[331249402,1720157452289,-1725.86,0.00049315,21]
[331249403,1720157452298,-500.0,0.00049315,120]
[331249404,1720157452308,-500.55713884,0.00049315,120]
[331249405,1720157452318,-4344.21,0.00049315,120]
[331249406,1720157452327,-861.77,0.00049315,120]
[331249407,1720157452336,-500.0,0.00049315,120]
[331249408,1720157452345,-500.0,0.00049315,120]
[331249409,1720157452354,-500.0,0.00049315,120]
[331249410,1720157452364,-2313.42,0.00049315,120]
[331249411,1720157452373,-338.00050963,0.00049315,120]
[331249412,1720157452383,-500.0,0.00049315,120]
[331249413,1720157452392,-8962.91,0.00049315,120]
[331249414,1720157452401,-5018.0,0.000495,70]
[331249415,1720157452411,-2000.0,0.00049589,120]
[331249416,1720157452420,-3663.75,0.00049589,120]
[331249417,1720157452430,-1306.18,0.00049589,120]
[331249418,1720157452440,-151.0,0.00049781,120]
[331249419,1720157452449,-3663.75,0.00049863,120]
[331249420,1720157452458,-1306.18,0.00049863,120]
[331249421,1720157452470,-4308.03496036,0.0005,60]
[331249422,1720157452484,-154.68290005,0.0005,30]
[331249423,1720157452495,-180.68719048,0.0005,4]
[331249424,1720157452504,-2000.0,0.00050136,120]
[331249425,1720157452513,-3663.75,0.00050136,120]
[331249426,1720157452522,-1306.18,0.00050136,120]
[331249427,1720157452531,-558.0,0.000502,30]
[331249428,1720157452540,-3663.75,0.0005041,120]
[331249429,1720157452549,-1306.18,0.0005041,120]
[331249430,1720157452558,-500.0,0.00050684,19]
[331249431,1720157452567,-2000.0,0.00050684,120]
[331249432,1720157452576,-3663.75,0.00050684,120]
[331249433,1720157452585,-1306.18,0.00050684,120]
[331249434,1720157452595,-290.27376141,0.00050958,4]
[331249435,1720157452604,-1171.91271258,0.00050958,4]
[331249436,1720157452613,-346.31774272,0.00050958,4]
[331249437,1720157452622,-6407.59250038,0.00050958,4]
[331249438,1720157452631,-324.82950934,0.00050958,3]
[331249439,1720157452640,-657.1304449,0.00050958,4]
[331249440,1720157452649,-154.83742071,0.00050958,4]
[331249441,1720157452658,-3663.75,0.00050958,120]
[331249442,1720157452667,-1306.18,0.00050958,120]
[331249443,1720157452676,-692.12,0.00050999,120]
[331249444,1720157452685,-3000.0,0.00051,85]
[331249445,1720157452694,-3000.0,0.0005101,85]
[331249446,1720157452703,-3000.0,0.0005102,85]
[331249447,1720157452712,-3000.0,0.0005103,85]
[331249448,1720157452721,-3000.0,0.0005104,85]
[331249449,1720157452731,-3000.0,0.0005105,85]
[331249450,1720157452740,-3000.0,0.0005106,85]
[331249451,1720157452749,-3000.0,0.0005107,85]
[331249452,1720157452758,-4861.189662,0.0005108,85]
[331249453,1720157452767,-500.0,0.00051123,120]
[331249454,1720157452776,-151.0,0.00051178,120]
[331249455,1720157452786,-155.40443651,0.00051229,60]
[331249456,1720157452796,-1476.11972707,0.00051232,120]
[331249457,1720157452805,-3663.75,0.00051232,120]
[331249458,1720157452815,-1306.18,0.00051232,120]
[331249459,1720157452825,-692.12,0.00051505,120]
[331249460,1720157452834,-692.12,0.00051505,120]
[331249461,1720157452843,-692.12,0.00051505,120]
[331249462,1720157452852,-692.12,0.00051505,120]
[331249463,1720157452862,-692.12,0.00051505,120]
[331249464,1720157452871,-692.12,0.00051505,120]
[331249465,1720157452880,-10461.51232369,0.00051506,31]
[331249466,1720157452890,-500.0,0.00051506,120]
[331249467,1720157452900,-501.24163051,0.00051506,120]
[331249468,1720157452910,-500.0,0.00051506,120]
[331249469,1720157452920,-500.0,0.00051506,120]
[331249470,1720157452929,-504.11,0.00051506,120]
[331249471,1720157452939,-504.09428953,0.00051506,120]
[331249472,1720157452949,-500.0,0.00051506,120]
[331249473,1720157452959,-500.0,0.00051506,120]
[331249474,1720157452968,-509.45370397,0.00051506,120]
[331249475,1720157452978,-500.0,0.00051506,120]
[331249476,1720157452988,-605.06414014,0.00051506,120]
[331249477,1720157452998,-500.0,0.00051506,120]
[331249478,1720157453008,-500.0,0.00051506,120]
[331249479,1720157453018,-500.0,0.00051506,120]
[331249480,1720157453029,-500.0,0.00051506,120]
[331249481,1720157453041,-502.67933541,0.00051506,120]
[331249482,1720157453051,-500.0,0.00051506,120]
[331249483,1720157453062,-500.0,0.00051506,120]
[331249484,1720157453072,-500.0,0.00051506,120]
[331249485,1720157453082,-556.04637146,0.00051506,120]
[331249486,1720157453092,-500.0,0.00051506,120]
[331249487,1720157453101,-500.0,0.00051506,120]
[331249488,1720157453112,-500.0,0.00051506,120]
[331249489,1720157453123,-500.0,0.00051506,120]
[331249490,1720157453132,-500.0,0.00051506,120]
[331249491,1720157453142,-500.0,0.00051506,120]
[331249492,1720157453152,-421.63800581,0.00051506,120]
[331249493,1720157453162,-500.0,0.00051506,120]
[331249494,1720157453171,-536.85832135,0.00051506,120]
[331249495,1720157453181,-500.0,0.00051506,120]
[331249496,1720157453190,-500.0,0.00051506,120]
[331249497,1720157453200,-500.0,0.00051506,120]
[331249498,1720157453210,-500.0,0.00051506,120]
[331249499,1720157453220,-500.0,0.00051506,120]
[331249500,1720157453230,-500.0,0.00051506,120]
[331249501,1720157453240,-500.0,0.00051506,120]
[331249502,1720157453250,-500.0,0.00051506,120]
[331249503,1720157453260,-500.0,0.00051506,120]
[331249504,1720157453269,-500.0,0.00051506,120]
[331249505,1720157453279,-500.0,0.00051506,120]
[331249506,1720157453288,-500.0,0.00051506,120]
[331249507,1720157453298,-500.0,0.00051506,120]
[331249508,1720157453308,-500.0,0.00051506,120]
[331249509,1720157453318,-500.0,0.00051506,120]
[331249510,1720157453328,-500.0,0.00051506,120]
[331249511,1720157453338,-500.0,0.00051506,120]
[331249512,1720157453348,-500.0,0.00051506,120]
[331249513,1720157453358,-500.0,0.00051506,120]
[331249514,1720157453367,-500.0,0.00051506,120]
[331249515,1720157453377,-500.0,0.00051506,120]
[331249516,1720157453387,-174.99,0.00051506,120]
[331249517,1720157453397,-500.0,0.00051506,120]
[331249518,1720157453407,-500.0,0.00051506,120]
[331249519,1720157453416,-500.0,0.00051506,120]
[331249520,1720157453426,-219.91,0.00051506,7]
[331249521,1720157453436,-500.0,0.00051506,120]
[331249522,1720157453445,-500.0,0.00051506,120]
[331249523,1720157453455,-500.0,0.00051506,120]
[331249524,1720157453468,-500.0,0.00051506,120]
[331249525,1720157453478,-500.0,0.00051506,120]
[331249526,1720157453488,-500.0,0.00051506,120]
[331249527,1720157453497,-500.0,0.00051506,120]
[331249528,1720157453508,-500.0,0.00051506,120]
[331249529,1720157453517,-500.0,0.00051506,120]
[331249530,1720157453527,-500.0,0.00051506,120]
[331249531,1720157453538,-500.0,0.00051506,120]
[331249532,1720157453547,-159.07957618,0.00051506,120]
[331249533,1720157453556,-500.0,0.00051506,120]
[331249534,1720157453566,-501.46394191,0.00051506,120]
[331249535,1720157453575,-500.0,0.00051506,120]
[331249536,1720157453584,-500.0,0.00051506,120]
[331249537,1720157453594,-500.0,0.00051506,120]
[331249538,1720157453603,-207.5569771,0.00051506,120]
[331249539,1720157453613,-466.02071786,0.00051506,120]
[331249540,1720157453623,-500.0,0.00051506,120]
[331249541,1720157453632,-500.0,0.00051506,120]
[331249542,1720157453642,-500.0,0.00051506,120]
[331249543,1720157453652,-929.93,0.00051506,120]
[331249544,1720157453662,-500.0,0.00051506,120]
[331249545,1720157453672,-500.0,0.00051506,120]
[331249546,1720157453682,-500.0,0.00051506,120]
[331249547,1720157453692,-548.62830581,0.00051506,120]
[331249548,1720157453702,-500.0,0.00051506,120]
[331249549,1720157453712,-500.0,0.00051506,120]
[331249550,1720157453722,-500.0,0.00051506,120]
[331249551,1720157453732,-500.0,0.00051506,120]
[331249552,1720157453742,-500.0,0.00051506,120]
[331249553,1720157453751,-500.0,0.00051506,120]
[331249554,1720157453761,-500.0,0.00051506,120]
[331249555,1720157453771,-500.0,0.00051506,120]
[331249556,1720157453781,-500.0,0.00051506,120]
[331249557,1720157453791,-500.0,0.00051506,120]
[331249558,1720157453800,-500.0,0.00051506,120]
[331249559,1720157453810,-500.0,0.00051506,120]
[331249560,1720157453819,-500.0,0.00051506,20]
[331249561,1720157453829,-1180.33,0.00051506,120]
[331249562,1720157453838,-500.0,0.00051506,120]
[331249563,1720157453848,-362.49963504,0.00051506,120]
[331249564,1720157453857,-500.0,0.00051506,120]
[331249565,1720157453866,-500.0,0.00051506,120]
[331249566,1720157453875,-500.0,0.00051506,120]
[331249567,1720157453884,-500.0,0.00051506,120]
[331249568,1720157453894,-557.13,0.00051506,120]
[331249569,1720157453903,-500.0,0.00051506,120]
[331249570,1720157453912,-500.0,0.00051506,120]
[331249571,1720157453922,-500.0,0.00051506,120]
[331249572,1720157453932,-500.0,0.00051506,120]
[331249573,1720157453941,-500.0,0.00051506,120]
[331249574,1720157453951,-500.0,0.00051506,120]
[331249575,1720157453960,-500.0,0.00051506,120]
[331249576,1720157453970,-336.7129237,0.00051506,120]
[331249577,1720157453980,-500.0,0.00051506,120]
[331249578,1720157453989,-511.41527576,0.00051506,120]
[331249579,1720157454000,-1528.26,0.00051506,120]
[331249580,1720157454009,-502.46518827,0.00051506,120]
[331249581,1720157454019,-500.0,0.00051506,120]
[331249582,1720157454031,-500.0,0.00051506,120]
[331249583,1720157454042,-500.0,0.00051506,120]
[331249584,1720157454051,-500.0,0.00051506,120]
[331249585,1720157454062,-500.0,0.00051506,120]
[331249586,1720157454073,-500.0,0.00051506,120]
[331249587,1720157454083,-864.5,0.00051506,120]
[331249588,1720157454093,-500.0,0.00051506,120]
[331249589,1720157454103,-500.0,0.00051506,120]
[331249590,1720157454115,-500.0,0.00051506,120]
[331249591,1720157454125,-500.0,0.00051506,120]
[331249592,1720157454134,-500.0,0.00051506,30]
[331249593,1720157454145,-500.0,0.00051506,120]
[331249594,1720157454155,-274.80066088,0.00051506,120]
[331249595,1720157454165,-506.2557711,0.00051506,120]
[331249596,1720157454174,-500.0,0.00051506,120]
[331249597,1720157454184,-934.13,0.00051506,120]
[331249598,1720157454193,-500.0,0.00051506,120]
[331249599,1720157454204,-500.0,0.00051506,120]
[331249600,1720157454213,-500.0,0.00051506,120]
[331249601,1720157454222,-500.08546067,0.00051506,120]
[331249602,1720157454232,-500.0,0.00051506,120]
[331249603,1720157454241,-500.0,0.00051506,120]
[331249604,1720157454250,-500.97538624,0.00051506,120]
[331249605,1720157454260,-500.0,0.00051506,120]
[331249606,1720157454269,-1051.27,0.00051506,120]
[331249607,1720157454280,-500.0,0.00051506,120]
[331249608,1720157454290,-500.0,0.00051506,120]
[331249609,1720157454301,-500.0,0.00051506,30]
[331249610,1720157454310,-500.0,0.00051506,120]
[331249611,1720157454320,-500.0,0.00051506,120]
[331249612,1720157454330,-608.07457747,0.00051506,120]
[331249613,1720157454340,-500.0,0.00051506,120]
[331249614,1720157454350,-500.0,0.00051506,120]
[331249615,1720157454360,-500.0,0.00051506,120]
[331249616,1720157454371,-500.0,0.00051506,120]
[331249617,1720157454382,-500.0,0.00051506,120]
[331249618,1720157454393,-492.02435946,0.00051506,120]
[331249619,1720157454403,-500.0,0.00051506,120]
[331249620,1720157454414,-877.53,0.00051506,120]
[331249621,1720157454424,-500.0,0.00051506,120]
[331249622,1720157454434,-500.0,0.00051506,120]
[331249623,1720157454444,-500.0,0.00051506,120]
[331249624,1720157454454,-500.0,0.00051506,120]
[331249625,1720157454466,-1090.07,0.00051506,120]
[331249626,1720157454478,-500.0,0.00051506,120]
[331249627,1720157454488,-500.0,0.00051506,120]
[331249628,1720157454498,-500.0,0.00051506,120]
[331249629,1720157454509,-500.0,0.00051506,120]
[331249630,1720157454518,-237.06692028,0.00051506,120]
[331249631,1720157454529,-500.0,0.00051506,120]
[331249632,1720157454539,-1461.72,0.00051506,120]
[331249633,1720157454549,-500.0,0.00051506,120]
[331249634,1720157454559,-500.0,0.00051506,120]
[331249635,1720157454569,-500.0,0.00051506,120]
[331249636,1720157454579,-500.0,0.00051506,120]
[331249637,1720157454588,-500.0,0.00051506,120]
[331249638,1720157454599,-500.0,0.00051506,120]
[331249639,1720157454608,-500.0,0.00051506,120]
[331249640,1720157454618,-500.0,0.00051506,120]
[331249641,1720157454628,-500.0,0.00051506,120]
[331249642,1720157454637,-500.0,0.00051506,120]
[331249643,1720157454647,-500.0,0.00051506,120]
[331249644,1720157454657,-500.0,0.00051506,120]
[331249645,1720157454669,-500.0,0.00051506,120]
[331249646,1720157454679,-500.0,0.00051506,120]
[331249647,1720157454690,-500.0,0.00051506,120]
[331249648,1720157454700,-500.0,0.00051506,120]
[331249649,1720157454710,-500.0,0.00051506,120]
[331249650,1720157454720,-500.0,0.00051506,120]
[331249651,1720157454731,-500.0,0.00051506,120]
[331249652,1720157454742,-503.49489871,0.00051506,120]
[331249653,1720157454752,-790.0,0.00051506,120]
[331249654,1720157454894,-500.0,0.00051506,120]
[331249655,1720157454906,-500.0,0.00051506,120]
[331249656,1720157454918,-500.0,0.00051506,120]
[331249657,1720157454928,-500.0,0.00051506,120]
[331249658,1720157454938,-500.0,0.00051506,120]
[331249659,1720157454949,-500.0,0.00051506,120]
[331249660,1720157454959,-8111.55,0.00051506,120]
[331249661,1720157454969,-500.0,0.00051506,120]
[331249662,1720157454984,-504.74,0.00051506,120]
[331249663,1720157454996,-504.5932476,0.00051506,120]
[331249664,1720157455007,-529.87,0.00051506,120]
[331249665,1720157455019,-500.0,0.00051506,120]
[331249666,1720157455031,-781.92,0.00051506,120]
[331249667,1720157455044,-500.0,0.00051506,120]
[331249668,1720157455055,-500.0,0.00051506,120]
[331249669,1720157455065,-500.0,0.00051506,120]
[331249670,1720157455077,-500.0,0.00051506,120]
[331249671,1720157455086,-500.0,0.00051506,120]
[331249672,1720157455096,-500.0,0.00051506,120]
[331249673,1720157455107,-500.0,0.00051506,120]
[331249674,1720157455119,-500.0,0.00051506,120]
[331249675,1720157455130,-500.0,0.00051506,120]
[331249676,1720157455140,-529.87353148,0.00051506,120]
[331249677,1720157455150,-500.0,0.00051506,120]
[331249678,1720157455160,-766.63,0.00051506,120]
[331249679,1720157455170,-500.0,0.00051506,120]
[331249680,1720157455180,-3315.45,0.00051506,120]
[331249681,1720157455190,-500.0,0.00051506,120]
[331249682,1720157455200,-13556.68,0.00051506,120]
[331249683,1720157455211,-326.45110222,0.00051506,120]
[331249684,1720157455221,-500.0,0.00051506,120]
[331249685,1720157455234,-500.0,0.00051506,120]
[331249686,1720157455244,-4559.97,0.00051506,120]
[331249687,1720157455254,-876.98,0.00051506,120]
[331249688,1720157455264,-500.0,0.00051506,120]
[331249689,1720157455274,-811.44,0.00051506,120]
[331249690,1720157455284,-500.0,0.00051506,120]
[331249691,1720157455294,-500.0,0.00051506,120]
[331249692,1720157455303,-500.0,0.00051506,120]
[331249693,1720157455314,-500.0,0.00051506,120]
[331249694,1720157455323,-500.0,0.00051506,120]
[331249695,1720157455333,-167.35304892,0.00051506,120]
[331249696,1720157455343,-667.88,0.00051506,120]
[331249697,1720157455353,-4175.33,0.00051506,120]
[331249698,1720157455363,-500.0,0.00051506,2]
[331249699,1720157455372,-500.0,0.00051506,120]
[331249700,1720157455383,-864.05,0.00051506,120]
[331249701,1720157455392,-500.0,0.00051506,120]
[331249702,1720157455402,-329.0858329,0.00051506,120]
[331249703,1720157455412,-500.0,0.00051506,120]
[331249704,1720157455422,-500.0,0.00051506,120]
[331249705,1720157455431,-500.0,0.00051506,120]
[331249706,1720157455441,-500.0,0.00051506,120]
[331249707,1720157455450,-500.0,0.00051506,120]
[331249708,1720157455460,-656.97,0.00051506,120]
[331249709,1720157455471,-500.0,0.00051506,120]
[331249710,1720157455484,-2228.02,0.00051506,120]
[331249711,1720157455494,-500.0,0.00051506,120]
[331249712,1720157455504,-500.0,0.00051506,120]
[331249713,1720157455515,-2105.17,0.00051506,120]
[331249714,1720157455526,-500.0,0.00051506,120]
[331249715,1720157455536,-500.0,0.00051506,120]
[331249716,1720157455547,-3663.75,0.00051506,120]
[331249717,1720157455557,-500.0,0.00051506,120]
[331249718,1720157455567,-500.0,0.00051506,120]
[331249719,1720157455577,-500.0,0.00051506,120]
[331249720,1720157455587,-500.0,0.00051506,120]
[331249721,1720157455597,-537.96,0.00051506,120]
[331249722,1720157455607,-500.0,0.00051506,120]
[331249723,1720157455617,-504.63,0.00051506,120]
[331249724,1720157455626,-500.0,0.00051506,120]
[331249725,1720157455636,-500.0,0.00051506,120]
[331249726,1720157455646,-500.0,0.00051506,120]
[331249727,1720157455656,-500.0,0.00051506,120]
[331249728,1720157455666,-500.0,0.00051506,120]
[331249729,1720157455675,-500.0,0.00051506,120]
[331249730,1720157455686,-774.43,0.00051506,120]
[331249731,1720157455696,-500.0,0.00051506,120]
[331249732,1720157455707,-500.0,0.00051506,120]
[331249733,1720157455716,-500.0,0.00051506,120]
[331249734,1720157455726,-1541.73,0.00051506,120]
[331249735,1720157455737,-500.0,0.00051506,120]
[331249736,1720157455748,-500.0,0.00051506,120]
[331249737,1720157455758,-735.67,0.00051506,120]
[331249738,1720157455768,-500.0,0.00051506,120]
[331249739,1720157455778,-1306.18,0.00051506,120]
[331249740,1720157455788,-500.0,0.00051506,120]
[331249741,1720157455798,-500.0,0.00051506,120]
[331249742,1720157455808,-500.0,0.00051506,120]
[331249743,1720157455818,-500.0,0.00051506,120]
[331249744,1720157455828,-1157.89,0.00051506,120]
[331249745,1720157455839,-500.0,0.00051506,120]
[331249746,1720157455848,-500.0,0.00051506,120]
[331249747,1720157455858,-500.0,0.00051506,60]
[331249748,1720157455868,-854.64,0.00051506,120]
[331249749,1720157455878,-2002.86,0.00051506,120]
[331249750,1720157455888,-500.0,0.00051506,120]
[331249751,1720157455898,-500.0,0.00051506,120]
[331249752,1720157455907,-967.04,0.00051506,120]
[331249753,1720157455917,-519.51758093,0.00051506,120]
[331249754,1720157455927,-1339.3,0.00051506,120]
[331249755,1720157455937,-984.18,0.00051506,120]
[331249756,1720157455947,-737.52,0.00051506,120]
[331249757,1720157455957,-500.0,0.00051506,120]
[331249758,1720157455967,-2685.18,0.00051506,120]
[331249759,1720157455979,-500.0,0.00051506,120]
[331249760,1720157455989,-500.0,0.00051506,120]
[331249761,1720157455998,-795.6,0.00051506,120]
[331249762,1720157456008,-500.0,0.00051506,120]
[331249763,1720157456017,-500.0,0.00051506,120]
[331249764,1720157456028,-500.0,0.00051506,120]
[331249765,1720157456042,-501.79553133,0.00051506,120]
[331249766,1720157456052,-545.74,0.00051506,120]
[331249767,1720157456062,-500.0,0.00051506,120]
[331249768,1720157456072,-500.0,0.00051506,120]
[331249769,1720157456082,-500.0,0.00051506,120]
[331249770,1720157456092,-500.0,0.00051506,120]
[331249771,1720157456101,-500.0,0.00051506,120]
[331249772,1720157456114,-500.0,0.00051506,120]
[331249773,1720157456124,-527.88,0.00051506,120]
[331249774,1720157456134,-2316.69,0.00051506,120]
[331249775,1720157456143,-500.0,0.00051506,120]
[331249776,1720157456152,-500.0,0.00051506,120]
[331249777,1720157456162,-500.0,0.00051506,120]
[331249778,1720157456172,-1187.08,0.00051506,120]
[331249779,1720157456181,-318.64532707,0.00051506,120]
[331249780,1720157456191,-500.0,0.00051506,120]
[331249781,1720157456201,-500.0,0.00051506,120]
[331249782,1720157456211,-500.0,0.00051506,120]
[331249783,1720157456221,-500.0,0.00051506,120]
[331249784,1720157456232,-500.0,0.00051506,120]
[331249785,1720157456243,-500.0,0.00051506,120]
[331249786,1720157456253,-500.0,0.00051506,120]
[331249787,1720157456263,-500.0,0.00051506,120]
[331249788,1720157456272,-500.0,0.00051506,120]
[331249789,1720157456282,-841.95,0.00051506,120]
[331249790,1720157456292,-500.0,0.00051506,120]
[331249791,1720157456302,-500.0,0.00051506,120]
[331249792,1720157456312,-500.0,0.00051506,120]
[331249793,1720157456322,-500.0,0.00051506,120]
[331249794,1720157456332,-500.0,0.00051506,120]
[331249795,1720157456342,-15684.73,0.00051506,120]
[331249796,1720157456351,-596.33,0.00051506,120]
[331249797,1720157456361,-441.3816912,0.00051506,120]
[331249798,1720157456370,-500.0,0.00051506,120]
[331249799,1720157456380,-500.0,0.00051506,120]
[331249800,1720157456390,-503.8353117,0.00051506,120]
[331249801,1720157456399,-500.0,0.00051506,120]
[331249802,1720157456409,-500.0,0.00051506,120]
[331249803,1720157456419,-1725.86,0.00051506,21]
[331249804,1720157456428,-500.0,0.00051506,120]
[331249805,1720157456438,-4344.21,0.00051506,120]
[331249806,1720157456448,-861.77,0.00051506,120]
[331249807,1720157456457,-500.0,0.00051506,120]
[331249808,1720157456470,-500.0,0.00051506,120]
[331249809,1720157456480,-500.0,0.00051506,120]
[331249810,1720157456491,-2313.42,0.00051506,120]
[331249811,1720157456501,-500.0,0.00051506,120]
[331249812,1720157456511,-664.176403,0.00051593,2]
[331249813,1720157456521,-200.0,0.00051761,120]
[331249814,1720157456531,-3663.75,0.0005178,120]
[331249815,1720157456541,-1306.18,0.0005178,120]
[331249816,1720157456550,-10000.0,0.00052,75]
[331249817,1720157456560,-3663.75,0.00052054,120]
[331249818,1720157456571,-1306.18,0.00052054,120]
[331249819,1720157456581,-3663.75,0.00052328,120]
[331249820,1720157456590,-1306.18,0.00052328,120]
[331249821,1720157456600,-151.0,0.00052466,120]
[331249822,1720157456609,-151.0,0.00052575,120]
[331249823,1720157456619,-3663.75,0.00052602,120]
[331249824,1720157456628,-1306.18,0.00052602,120]
[331249825,1720157456638,-3663.75,0.00052876,120]
[331249826,1720157456647,-1306.18,0.00052876,120]
[331249827,1720157456656,-3663.75,0.0005315,120]
[331249828,1720157456666,-1306.18,0.0005315,120]
[331249829,1720157456675,-3663.75,0.00053424,120]
[331249830,1720157456685,-1306.18,0.00053424,120]
[331249831,1720157456694,-159.336049,0.00053425,2]
[331249832,1720157456704,-692.12,0.00053697,120]
[331249833,1720157456713,-692.12,0.00053697,120]
[331249834,1720157456723,-692.12,0.00053697,120]
[331249835,1720157456735,-692.12,0.00053697,120]
[331249836,1720157456744,-692.35436512,0.00053697,120]
[331249837,1720157456755,-500.0,0.00053698,120]
[331249838,1720157456764,-504.11,0.00053698,120]
[331249839,1720157456773,-500.0,0.00053698,120]
[331249840,1720157456783,-500.0,0.00053698,120]
[331249841,1720157456792,-500.0,0.00053698,120]
[331249842,1720157456801,-500.0,0.00053698,120]
[331249843,1720157456811,-500.0,0.00053698,120]
[331249844,1720157456820,-517.56800182,0.00053698,120]
[331249845,1720157456829,-500.0,0.00053698,120]
[331249846,1720157456839,-500.0,0.00053698,120]
[331249847,1720157456848,-352.72986547,0.00053698,120]
[331249848,1720157456858,-500.0,0.00053698,120]
[331249849,1720157456867,-500.0,0.00053698,120]
[331249850,1720157456877,-500.0,0.00053698,120]